Cogmind - Beta 14 @@@ ROGUE MODE // 2024.10.05 @ 22:35:51 Player: OctagonalPrism Result: Destroyed by Autobeam Turret with Autobeam Performance ------------- Evolutions (0) 0 Regions Visited (2) 400 Robots Destroyed (32) 160 Value Destroyed (755) 755 Prototype IDs (13) 260 Alien Tech Used (0) 0 Bonus (0) 0 TOTAL SCORE: 1575 Bonus ------- None Cogmind --------- Core Integrity 0/250 Matter 271/300 Energy 83/100 System Corruption 0% Temperature Cool (6) Movement Rolling (110) Location -10/Subcaves Parts ------- > --- POWER (1) -------- (None) > --- PROPULSION (2) --- Subdweller Monowheel Subdweller Monowheel > --- UTILITY (2) ------ Medium Storage Unit Sensor Array > --- WEAPON (2) ------- Grenade Launcher Makeshift Axe > --- INVENTORY (10) --- Arachnoskeleton Improved Terrain Scanner Terrain Scan Processor Subdweller Laser Assault Rifle Light Assault Rifle Subdweller Machine Gun Scrap Shield Fragment (49) Peak State ------------ > --- POWER ------------ Subdweller Power Source > --- PROPULSION ------- Subdweller Monowheel Subdweller Monowheel > --- UTILITY ---------- Medium Storage Unit Improved Terrain Scanner > --- WEAPON ----------- Subdweller Laser Subdweller Machine Gun > --- INVENTORY -------- Arachnoskeleton Sensor Array Terrain Scan Processor Assault Rifle Light Assault Rifle Grenade Launcher Makeshift Axe Scrap Shield Fragment [Rating: 17] Favorites ----------- Power Subdweller Power Source Engine Subdweller Power Source Propulsion Light Treads Treads Light Treads Wheel Subdweller Monowheel Utility Medium Storage Unit Device Improved Terrain Scanner Storage Medium Storage Unit Processor Targeting Computer Weapon Subdweller Laser Energy Gun Subdweller Laser Energy Cannon Beam Cannon Ballistic Gun Assault Rifle Launcher Grenade Launcher Slashing Weapon Makeshift Axe Build | -11 -10 -10 ------- Run | Yrd Mat Sub Slots Evolved . | . . . Power . | . . . Propulsion . | . . . Utility . | . . . Weapon . | . . . Parts Attached 30 | 7 12 11 Power 4 | 1 1 2 Engine 4 | 1 1 2 Core . | . . . Reactor . | . . . Propulsion 5 | 2 . 3 Treads 2 | 2 . . Leg . | . . . Wheel 3 | . . 3 Hover . | . . . Flight . | . . . Utility 8 | 2 4 2 Device 5 | 1 2 2 Storage 2 | 1 1 . Processor 1 | . 1 . Hackware . | . . . Protection . | . . . Artifact . | . . . Weapon 13 | 2 7 4 Energy Gun 3 | . 3 . Energy Cannon 1 | . 1 . Ballistic Gun 5 | 2 1 2 Ballistic Cannon . | . . . Launcher 3 | . 2 1 Special Weapon . | . . . Impact Weapon . | . . . Slashing Weapon 1 | . . 1 Piercing Weapon . | . . . Special Melee Weapon . | . . . Unidentified Prototypes . | . . . Parts Lost 4 | . 1 3 Power 1 | . . 1 Propulsion 2 | . . 2 Utility 1 | . 1 . Weapon . | . . . Highest Loss Streak 3 | . 1 3 To Critical Strikes . | . . . Average Slot Usage (%) 92 | . 89 94 Engine 12 | . 14 12 Treads 14 | . 28 5 Wheel 11 | . . 19 Device 6 | . 3 7 Storage 14 | . 14 14 Processor 4 | . 1 6 Energy Gun 11 | . 7 13 Energy Cannon 3 | . 8 . Ballistic Gun 8 | . 10 6 Launcher 4 | . . 6 Peak Build Rating 17 | 9 11 17 Average Rating 10 | 7 7 13 On Entrance 6 | . 9 11 Naked Turns . | . . . Heaviest Build 24 | 15 23 24 Greatest Support 40 | 40 40 40 Greatest Overweight (x) 6 | 2 . 6 Average Overweight (x) . | . . . Largest Inventory Capacity 10 | 8 10 10 Average Capacity 9 | 7 9 10 Most Carried 10 | 1 10 10 Average Carried 7 | . 6 9 Final Capacity 10 | 8 10 10 Final Carried 10 | 1 10 10 Class Distribution -------------------- 63% | Mutant 36% | Scavenger-Mutant Dominant Class ---------------- Mutant | -10/Materials Scavenger-Mutant | -10/Subcaves Resources | -11 -10 -10 ----------- Run | Yrd Mat Sub Matter Collected 789 | 322 313 154 Remotely . | . . . Salvage Created 1095 | 113 767 215 Parts 57 | 6 41 10 Haulers Intercepted 2 | . 2 . Recyclers Shooed 2 | . 2 . Parts Field Recycled . | . . . Retrieved Matter . | . . . Parts Self-Destructed 11 | . . 11 Prevented . | . . . Kills | -11 -10 -10 ------- Run | Yrd Mat Sub Combat Hostiles Destroyed 19 | . 14 5 Guns 8 | . 5 3 Cannons 4 | . 4 . AOE 7 | . 5 2 Classes Destroyed 10 | 2 7 1 Builder 2 | . 2 . Tunneler 3 | 3 . . Hauler 2 | . 2 . Recycler 3 | 1 2 . Operator 2 | . 2 . Watcher 1 | . 1 . Swarmer 3 | . 3 . Grunt 10 | . 8 2 Sentry 1 | . . 1 Subdweller 5 | . 3 2 Best Kill Streak 4 | 2 4 2 Combat Bots Only 3 | . 3 2 Max Kills in Single Turn 2 | 1 2 1 Gunslinging 1 | . 1 . Exploded 2 | . 2 1 Melee . | . . . Uniques/NPCs Destroyed . | . . . Combat | -11 -10 -10 -------- Run | Yrd Mat Sub Hostile Shots Fired 107 | . 70 37 Missed 38 | . 23 15 Damage Taken 922 | . 512 410 Core 250 | . 122 128 Absorbed by Shields . | . . . Core Remaining (%) 100 | 100 . . Volleys Fired 96 | 14 58 24 Largest 2 | 2 2 2 Hottest 120 | 40 120 120 Shots Fired 168 | 28 98 42 Gun 129 | 28 62 39 Cannon 31 | . 31 . Launcher 8 | . 5 3 Special . | . . . Kinetic 87 | 28 40 19 Thermal 73 | . 53 20 Explosive 8 | . 5 3 Electromagnetic . | . . . Robot Hit Streak 11 | 6 8 11 Robot Miss Streak 7 | 2 7 2 Penetration Max . | . . . Secondary Targets 1 | . 1 . Max Gunslinging Chain 1 | . 1 . Shots Hit Robots 104 | 20 55 29 Core Hits 47 | 5 33 9 Critical Kills 1 | . 1 . Critical Parts Destroyed 1 | . 1 . Critical Strikes 2 | . 2 . Destroy 2 | . 2 . Melee Attacks 4 | . . 4 Impact . | . . . Slashing 4 | . . 4 Piercing . | . . . Sneak Attacks . | . . . Combat Hostiles . | . . . Follow-up Attacks . | . . . Damage Inflicted 2196 | 254 1434 508 Guns 1257 | 254 588 415 Cannons 301 | . 301 . Explosions 638 | . 545 93 Melee . | . . . Ramming . | . . . Kinetic 679 | 254 274 151 Thermal 879 | . 615 264 Explosive 638 | . 545 93 Electromagnetic . | . . . Impact . | . . . Slashing . | . . . Piercing . | . . . Highest Corruption . | . . . Average Corruption . | . . . Corruption Purged . | . . . Corruption Blocked . | . . . Overload Shots . | . . . Overflow Damage 19 | . 19 . Projectiles . | . . . Explosions 19 | . 19 . Melee . | . . . Knockbacks . | . . . Impact . | . . . Kinetic . | . . . Secondary . | . . . Self-Inflicted Damage 38 | . . 38 Shots 1 | . . 1 Rammed . | . . . Targets Rammed . | . . . Kicked . | . . . Crushed . | . . . Highest Temperature 310 | . 310 . Average Temperature 83 | . 83 . Received Heat Transfer 258 | . 237 21 Siege Activations . | . . . Robots Corrupted . | . . . Combat Hostiles . | . . . Parts Fried . | . . . Impact Corruptions . | . . . Robots Melted . | . . . Combat Hostiles . | . . . Parts Melted . | . . . Heat Transferred 1329 | . 1004 325 Parts Sabotaged . | . . . Parts Stolen . | . . . Parts Stripped . | . . . Power Chain Reactions . | . . . Alert | -11 -10 -10 ------- Run | Yrd Mat Sub Peak Influence 232 | 20 232 . Initial 13 | . 13 . Average 79 | 9 99 . Maximum Alert Level 1 | . 1 . Low Security (%) 88 | 100 85 . Level 1 11 | . 14 . Level 2 . | . . . Level 3 . | . . . Level 4 . | . . . Level 5 . | . . . High Security . | . . . Max Security . | . . . Squads Dispatched 4 | . 4 . Investigation 2 | . 2 . Extermination . | . . . Reinforcement 2 | . 2 . Assault . | . . . Garrison . | . . . Intercept . | . . . Searches Triggered . | . . . Construction Impeded . | . . . Haulers Reinforced . | . . . Active Scanning Responses . | . . . Cargo Convoy Interrupts . | . . . Stealth | -11 -10 -10 --------- Run | Yrd Mat Sub Distress Signals . | . . . Communications Jammed . | . . . Distress Signals . | . . . Times Spotted 26 | . 20 6 Peak Tracking Total 4 | . 4 2 Tactical Retreats 1 | . 1 . Traps | -11 -10 -10 ------- Run | Yrd Mat Sub Traps Triggered 1 | . 1 . Indirectly . | . . . Trap Hack Attempts . | . . . Triggered . | . . . Disarmed . | . . . Reprogrammed . | . . . Reused . | . . . Traps Extracted . | . . . Installed . | . . . Triggered 3 | . . 3 Machines | -11 -10 -10 ---------- Run | Yrd Mat Sub Machines Disabled 1 | . . 1 Max in Single Turn 1 | . . 1 Machines Repaired . | . . . Machines Dismantled . | . . . Machines Sabotaged . | . . . Overloaded Fab Kills . | . . . Hacking | -11 -10 -10 --------- Run | Yrd Mat Sub Machines Accessed 5 | . 4 1 Terminals 4 | . 4 . Fabricators . | . . . Repair Stations . | . . . Recycling Units . | . . . Scanalyzers . | . . . Garrison Access . | . . . Total Hacks 23 | . 14 9 Successful 16 | . 7 9 Failed 7 | . 7 . Catastrophic . | . . . Database Lockouts . | . . . Manual 7 | . 7 . Terminals 14 | . 14 . Fabricators . | . . . Repair Stations . | . . . Recycling Units . | . . . Scanalyzers . | . . . Garrison Access . | . . . Terminal Hacks 12 | . 3 9 Record 8 | . . 8 Prototype ID Bank 1 | . 1 . Locate Traps 2 | . 2 . Derelict Proto ID Bank 1 | . . 1 Fabricator Hacks . | . . . Repair Station Hacks . | . . . Recycling Unit Hacks . | . . . Scanalyzer . | . . . Garrison Access Hacks . | . . . Unauthorized Hacks 4 | . 4 . Terminals 4 | . 4 . Botnet 4 | . 4 . Fabricators . | . . . Repair Stations . | . . . Recycling Units . | . . . Scanalyzers . | . . . Garrison Access . | . . . Data Cores Recovered . | . . . Used . | . . . Hacking Detections 4 | . 4 . Full Trace Events 1 | . 1 . Feedback Events . | . . . Feedback Blocked . | . . . Robot Schematics Acquired . | . . . Robots Built . | . . . Authchips . | . . . Time . | . . . Total Robot Build Rating . | . . . Part Schematics Acquired . | . . . Parts Built . | . . . Authchips . | . . . Time . | . . . Total Part Build Rating . | . . . Parts Repaired . | . . . Time . | . . . Parts Recycled . | . . . Recycled Matter . | . . . Retrieved Matter . | . . . Retrieved Components . | . . . Parts Scanalyzed . | . . . Part Schematics Acquired . | . . . Parts Damaged . | . . . Bothacking | -11 -10 -10 ------------ Run | Yrd Mat Sub Used RIF Installer . | . . . Robots Hacked . | . . . Non-combat . | . . . Combat . | . . . Robot Hacks Applied . | . . . Relay Couplers Released . | . . . Fabnet Peak Effective % . | . . . Robots Rewired . | . . . Allies Hacked . | . . . Hacks Repelled . | . . . Allies | -11 -10 -10 -------- Run | Yrd Mat Sub Total Allies . | . . . Largest Group . | . . . Highest-Rated Group . | . . . Highest-Rated Ally . | . . . Total Orders . | . . . Ally Attacks . | . . . Total Damage . | . . . Kills . | . . . Allies Corrupted . | . . . Allies Melted . | . . . Intel | -11 -10 -10 ------- Run | Yrd Mat Sub Robot Analysis Total . | . . . Derelict Logs Recovered 1 | . . 1 Drone Launches . | . . . Drone Recoveries . | . . . Exploration | -11 -10 -10 ------------- Run | Yrd Mat Sub Turns Passed 2405 | 239 870 1296 Spaces Moved 1387 | 118 412 857 Core 12 | 9 . 3 Treads 643 | 109 412 122 Legs . | . . . Wheels 732 | . . 732 Hover . | . . . Flight . | . . . Fastest Speed 50 | 50 160 110 Average Speed 135 | 156 160 121 Slowest Speed 350 | 160 160 350 Overloaded Moves . | . . . Propulsion Burnouts . | . . . Robots Hopped . | . . . Cave-ins Triggered . | . . . Exploration Rate (%) 44 | 8 66 58 Regions Visited 2 Branch Regions 1 Pre-discovered Areas 2 | . . 2 Known Exits Taken . | . . . Unknown Exits Taken 2 | 1 1 . Scrap Searched 3 | . . 3 Spaces Dug 10 | . 6 4 Terrain Destroyed 41 | . 18 23 Melee 4 | . . 4 Projectile . | . . . AOE 37 | . 18 19 Terrain Rammed . | . . . Walls Destroyed . | . . . Machines Disabled . | . . . Actions | -11 -10 -10 --------- Run | Yrd Mat Sub Total 1735 | 141 525 1069 Wait 183 | 2 23 158 Move 1385 | 117 411 857 Hop . | . . . Pick Up 17 | 1 11 5 Fast Attach 13 | 7 4 2 Attach 4 | . 1 3 Detach 4 | . 3 1 Swap 13 | . 7 6 Drop 16 | . 7 9 Fire 96 | 14 58 24 Melee 4 | . . 4 Ram . | . . . Kick . | . . . Crush . | . . . Escape Stasis . | . . . Rewire . | . . . Trap . | . . . Miscellaneous . | . . . Route ------- -11/Scrapyard -10/Materials (discovered 4 exits: [*Mat x2] / [*Min] / *Sub) -10/Subcaves (discovered 1 exit: [*Mat]) History --------- Turn | Location | Event 13 | -11/Scrapyard | Discovered new exit (range 15) 240 | -11/Scrapyard | Entered Materials 331 | -10/Materials | Build established: Mutant 622 | -10/Materials | Discovered new exit (range 10) 740 | -10/Materials | Derelicts attacked the area 747 | -10/Materials | Discovered new exit (range 13) 1005 | -10/Materials | Discovered new exit (range 11) 1093 | -10/Materials | Discovered new exit (range 7) 1110 | -10/Materials | Entered Subcaves 1163 | -10/Subcaves | Discovered new exit (range 15) 1337 | -10/Subcaves | Core integrity fell below 50% 1348 | -10/Subcaves | Core integrity fell below 20% 1389 | -10/Subcaves | Lost 3 parts (1p2n) 1658 | -10/Subcaves | Visited 4L-MR0's lab 1665 | -10/Subcaves | Build established: Scavenger-Mutant 1674 | -10/Subcaves | Found Arachnoskeleton 1870 | -10/Subcaves | A swath of the cavern ceiling suddenly collapsed 2276 | -10/Subcaves | Learned location of Zion (-7) 2276 | -10/Subcaves | Met a Zionite searching for "candidates" 2406 | -10/Subcaves | Destroyed by Autobeam Turret with Autobeam Last Messages --------------- 01726_ Dropped Sub. Monowheel. 01728_ Acquired 10 matter. 01790_ G-47 Trooper destroyed. 01794_ G-34 Mercenary destroyed. 01801_ Aluminum Leg fries itself beyond repair. 01806_ Acquired 15 matter. 01807_ Acquired 16 matter. 01809_ Aluminum Leg fries itself beyond repair. A swath of the cavern ceiling suddenly collapses. 02004_ Sub. Monowheel shoots sparks and powers down. 02014_ 8Y-KH5(z): "She is not going to be happy we haven't found any suitable candidates yet." 02154_ Sub. Power Source shoots sparks and powers down. 02257_ Dropped Broken Sub. Power Source. 02276_ 8Y-KH5(z): "Hey you! It's really dangerous down here, I feel that you could die at any moment. For your health and safety might I suggest a trip to Zion?" World map updated: -7/Zion. Map ----- +----------------------------------------------------+ | ????????????????????## #??# ##???#""#"#""#" | | ?????????????????????###??# #???###"""""" | | ?????????????????????#????# #????#"####### | | ??????????????????????????####### #?#??######### | | ????????????????????????????????# ##????#?????# | | ????????????????????????????????# ####???????## | | ????????????????????????????????# ##???????# | | ????????????????????????????????# #???????# | | ???????????????????????????????## #???????# | | ??????????????????????? ? ?????# ##????### | | ???????????????????????? ???# #### ##?### | | ???????????????????????? s??# ##### #### | | ?????????????????? #??# ##?# ### | | ?????????????????# ### #??#### | | ?????????????????# #????# ## | | ?????????????????# #?##?## ### # | | ?????????????????# #????## ##### | | ????????????????? ##??## ## ## #?## | | ????????????????? #### ######## #??? | | ?????????????????# ## ###?????###??? | | ????????????????????# #???#???????#? | | ????????????????????# #???#####??#?? | | ????????????????????# ##??## ###??? | | ????????????????????## ##???# ###?# | | ????????????????# #### ##?### ### | | ????????????# @ ### | | ??????????# ### | | ?????????? #????# | | ??????????? ???????# ## | | ?????????????????????# | | ????????????????????# ### #### | | ????????????????#???## ###?## ##### | | ?????????????????????# ##?????##### ###### | | ?????????????????????# ???????????# ##?### | | ?????????????????????# ????????????### ##??# | | ?????????????????????##?#??????????####### #### | | ?????????????????????????????????##??##?## # | | ????????????????????????????????????????# # | | ?????????????????????????????????????#### ## | | ?????????????????????????????????????#?## ## | | ?????????????????????????????????????#?# ## | | ?????????????????????????????????#??##?## | | ??????????????????????????????#??##???### # | | ??????????????????????????????????????#?## # | | ???????????????????????????????#?????#???## # | | ??????????????????????#??????????##???#??## # | | ????????????????????????????????## ####???# ## | | ??????????????????????????????### ##### ### | | ???????????????????????????????# *##?? | | ???????????????????????????????# ###"##? | +----------------------------------------------------+ Best States ------------- Heat Dissipation 35 Energy Generation 15 Energy Capacity 250 Matter Stores 300 Matter Capacity 300 Sight Range 16 Terrain Scan Range 16 Terrain Scan Density 10 Evasion (%) 40 Targeting Accuracy 5 Recoil Reduction 2 Item Schematics ----------------- None Robot Schematics ------------------ None Fabricated ------------ Nothing Alien Tech Used ----------------- None Achievements -------------- None Challenges ------------ None Game ------ Seed CombatBoreCompactor Manual? 0 Play Time 00:23:53 Cumulative 146.2 hours Start 2024.10.05 @ 22:14:52 End 2024.10.05 @ 22:35:51 Sessions 1 Manual Loads 0 Difficulty Rogue Special Mode None Game No. 123 Rogue 123 Adventurer 0 Explorer 0 Win Type - Total 1 Types 1/0/0/0/0/0/0/0/0 Lore% 58 Gallery% 61 Achievement% 48 Wizard Run 0 Options --------- Layout 2 ASCII 0 Keyboard 0 Movement Numpad Keybinds 0 Fullscreen 1 Font 16/Terminus Map View 55x47 Zoom Use 0% Tactical HUD 1 Map Filters NONE Filters NONE Steam 1 RUN: ccb263c3-b3a7-4515-a6d2-d37e8ae45891